bitfinex/quotes_SOLUSD_20251118
["timestamp","ask_amount","ask_price","bid_price","bid_amount"]
[1763479832927,9.68456077,141.5,141.38,0.71]
[1763479833126,9.68456077,141.5,141.26,15.3]
[1763479833127,9.78882769,141.48,141.39,0.71]
[1763479833329,9.78882769,141.48,141.38,9.68456077]
[1763479833330,9.68456077,141.45,141.38,9.68456077]
[1763479833554,9.68456077,141.44,141.37,9.68456077]
[1763479833745,9.68456077,141.43,141.37,9.68456077]
[1763479833947,9.68456077,141.41,141.31,0.71]
[1763479834162,9.68456077,141.4,141.33,9.68456077]
[1763479834366,9.68456077,141.39,141.31,0.71]
[1763479834661,9.68456077,141.39,141.33,9.68456077]
[1763479834856,9.78882769,141.38,141.31,0.71]
[1763479835027,0.67,141.39,141.33,9.68456077]
[1763479835228,0.67,141.4,141.31,8.49404024]
[1763479835470,10.35456077,141.4,141.34,9.68456077]
[1763479835759,9.68456077,141.38,141.3,7.07714083]
[1763479835963,0.67,141.44,141.37,9.68456077]
[1763479836138,0.67,141.49,141.43,9.68456077]
[1763479836342,9.68456077,141.48,141.42,9.68456077]
[1763479836543,10.35456077,141.49,141.43,9.68456077]
[1763479836858,0.67,141.49,141.41,7.07157909]
[1763479837027,0.67,141.49,141.44,9.68456077]
[1763479837437,0.67,141.53,141.46,9.68456077]
[1763479837624,0.67,141.53,141.45,0.71]
[1763479837824,9.68456077,141.5,141.44,4.48]
[1763479838057,9.68456077,141.51,141.44,14.16456077]
[1763479838257,18.12096,141.52,141.45,9.68456077]
[1763479838553,9.68456077,141.52,141.45,9.68456077]
[1763479838768,0.67,141.51,141.46,9.68456077]
[1763479839130,9.68456077,141.54,141.47,9.68456077]
[1763479839331,0.67,141.54,141.48,9.68456077]
[1763479839529,28.47552077,141.54,141.48,9.68456077]
[1763479840142,28.47552077,141.54,141.44,4.48]
[1763479840143,9.68456077,141.51,141.44,4.48]
[1763479840338,163.5,141.59,141.45,0.71]
[1763479840555,0.67,141.6,141.54,9.68456077]
[1763479840762,4.48,141.61,141.56,9.68456077]
[1763479840935,0.1,141.62,141.57,9.68456077]
[1763479841132,0.1,141.62,141.58,9.68456077]
[1763479841838,0.1,141.62,141.56,0.71]
[1763479842038,0.1,141.62,141.61,9.68456077]
[1763479842652,0.1,141.62,141.6,9.68456077]
[1763479842849,0.1,141.62,141.61,9.68456077]
[1763479843048,24.88790935,141.63,141.61,9.68456077]
[1763479843259,0.68,141.73,141.63,9.78882769]
[1763479843446,0.68,141.76,141.71,9.68456077]
[1763479843771,0.68,141.76,141.63,9.78882769]
[1763479843772,9.68456077,141.72,141.64,4.48]
[1763479843941,4.48,141.72,141.63,9.68456077]
[1763479844266,18.12096,141.65,141.51,9.78882769]
[1763479844459,9.68456077,141.6,141.5,7.0671378]
[1763479844662,9.68456077,141.58,141.45,7.06947344]
[1763479844872,5.16,141.59,141.46,4.48]
[1763479845034,18.12096,141.6,141.46,4.48]
[1763479845035,0.68,141.58,141.54,9.94410706]
[1763479845368,0.68,141.61,141.56,9.94410706]
[1763479845537,0.68,141.61,141.48,18.12096]
[1763479845737,28.06506706,141.59,141.49,4.48]
[1763479845958,9.94410706,141.58,141.46,0.70691361]
[1763479846159,0.68,141.58,141.53,9.94410706]
[1763479846448,0.68,141.57,141.52,9.94410706]
[1763479846630,0.68,141.57,141.45,18.12096]
[1763479846631,18.12096,141.56,141.45,0.70696359]
[1763479846836,0.68,141.55,141.47,9.94410706]
[1763479847075,18.12096,141.52,141.44,9.94410706]
[1763479847357,10.62410706,141.55,141.49,9.94410706]
[1763479847568,10.62410706,141.55,141.41,4.48]
[1763479847569,0.68,141.54,141.5,9.94410706]
[1763479847738,0.68,141.56,141.52,9.94410706]
[1763479847945,0.68,141.55,141.5,9.94410706]
[1763479848267,0.68,141.55,141.51,9.94410706]
[1763479848480,0.68,141.55,141.52,9.94410706]
[1763479848640,0.68,141.55,141.51,9.94410706]
[1763479848970,10.62410706,141.55,141.48,9.94410706]
[1763479849169,9.94410706,141.49,141.39,9.94410706]
[1763479849337,9.94410706,141.44,141.37,9.94410706]
[1763479849542,9.94410706,141.45,141.38,9.94410706]
[1763479849750,18.12096,141.48,141.39,9.94410706]
[1763479849956,0.68,141.47,141.38,9.94410706]
[1763479850257,9.94410706,141.45,141.38,4.48]
[1763479850568,9.94410706,141.43,141.31,7.07664001]
[1763479850747,18.12096,141.45,141.35,9.94410706]
[1763479850932,18.80096,141.45,141.36,9.94410706]
[1763479851137,4.48,141.47,141.32,4.48]
[1763479851138,9.94410706,141.43,141.37,9.94410706]
[1763479851369,9.94410706,141.4,141.3,7.27713513]
[1763479851537,0.68,141.42,141.34,9.94410706]
[1763479851741,9.94410706,141.4,141.34,9.94410706]
[1763479852049,9.94410706,141.39,141.3,7.27713513]
[1763479852253,9.94410706,141.39,141.32,9.94410706]
[1763479852564,0.68,141.41,141.37,7.07363655]
[1763479853272,10.62410706,141.45,141.39,9.94410706]
[1763479853440,4.48,141.48,141.38,9.94410706]
[1763479853773,0.68,141.44,141.36,14.42410706]
[1763479853940,9.94410706,141.42,141.36,4.48]
[1763479854137,9.94410706,141.4,141.31,24.76824003]
[1763479854343,5.16,141.44,141.31,24.76824003]
[1763479854344,9.94410706,141.39,141.33,9.94410706]
[1763479854558,0.68,141.39,141.34,7.07513796]
[1763479854761,9.94410706,141.39,141.33,17.01963852]
[1763479854967,10.62410706,141.38,141.32,9.94410706]
[1763479855173,0.68,141.38,141.32,9.94410706]
[1763479855345,10.62410706,141.38,141.32,9.94410706]
[1763479855542,0.68,141.38,141.32,9.94410706]
[1763479855894,18.12096,141.41,141.3,7.27701605]
[1763479855895,9.94410706,141.36,141.3,7.27701605]
[1763479856045,9.94410706,141.35,141.3,0.2]
[1763479856243,9.94410706,141.34,141.3,0.2]
[1763479856744,0.68,141.33,141.3,0.2]
[1763479857156,0.68,141.33,141.17,0.9083658]
[1763479857157,9.94410706,141.32,141.17,0.9083658]
[1763479857354,0.68,141.33,141.2,9.94410706]
[1763479857355,4.48,141.31,141.2,9.94410706]
[1763479857572,4.48,141.31,141.21,9.94410706]
[1763479857862,10.62410706,141.3,141.22,4.48]
[1763479858053,10.62410706,141.3,141.23,9.94410706]
[1763479858244,18.12096,141.32,141.23,9.94410706]
[1763479858245,10.62410706,141.29,141.23,9.94410706]
[1763479858453,0.68,141.29,141.24,9.94410706]
[1763479858669,9.78882769,141.36,141.21,4.48]
[1763479858670,0.68,141.37,141.28,9.94410706]
[1763479858839,4.48,141.42,141.33,9.94410706]
[1763479859168,2.0,141.47,141.25,27.90978769]
[1763479859169,0.68,141.48,141.41,9.94410706]
[1763479859376,10.62410706,141.48,141.41,9.94410706]
[1763479859576,0.68,141.48,141.42,9.94410706]
[1763479859788,10.62410706,141.47,141.41,9.94410706]
[1763479859961,0.68,141.47,141.43,9.94410706]
[1763479860157,0.68,141.46,141.4,4.48]
[1763479860350,9.94410706,141.49,141.42,9.94410706]
[1763479860550,0.68,141.54,141.47,9.94410706]
[1763479860748,0.68,141.54,141.5,9.94410706]
[1763479860979,9.94410706,141.53,141.41,0.70716356]
[1763479861175,9.94410706,141.52,141.44,9.94410706]
[1763479861374,9.94410706,141.52,141.42,4.48]
[1763479861375,0.68,141.57,141.51,9.94410706]
[1763479861577,0.68,141.61,141.55,9.94410706]
[1763479861786,0.68,141.61,141.56,9.94410706]
[1763479861984,0.68,141.61,141.57,9.94410706]
[1763479862188,0.68,141.64,141.58,9.94410706]
[1763479862368,0.68,141.67,141.62,9.94410706]
[1763479862688,10.62410706,141.67,141.6,4.48]
[1763479862857,10.62410706,141.66,141.59,9.94410706]
[1763479863179,5.16,141.66,141.53,4.48]
[1763479863407,0.68,141.65,141.53,4.48]
[1763479863574,10.62410706,141.65,141.58,9.94410706]
[1763479863749,10.62410706,141.65,141.53,4.48]
[1763479863750,9.94410706,141.6,141.53,4.48]
[1763479863950,9.94410706,141.61,141.54,9.94410706]
[1763479864151,9.94410706,141.62,141.53,4.48]
[1763479864385,0.68,141.62,141.53,9.94410706]
[1763479864594,9.94410706,141.57,141.49,4.48]
[1763479864895,9.94410706,141.5,141.42,4.48]
[1763479865051,9.78882769,141.52,141.41,4.48]
[1763479865382,9.78882769,141.52,141.32,0.70761392]
[1763479865383,9.94410706,141.46,141.38,14.42410706]
[1763479865586,9.94410706,141.46,141.39,9.94410706]
[1763479865894,10.62410706,141.48,141.33,0.70756385]
[1763479866063,0.68,141.56,141.47,9.94410706]
[1763479866262,0.68,141.56,141.52,9.94410706]
[1763479866584,0.68,141.56,141.45,4.48]
[1763479866585,9.94410706,141.53,141.45,4.48]
[1763479866755,18.12096,141.54,141.41,7.07134797]
[1763479866955,18.12096,141.54,141.34,50.0]
[1763479866956,9.94410706,141.48,141.36,0.2]
[1763479867164,9.94410706,141.46,141.39,9.94410706]
[1763479867370,9.94410706,141.43,141.36,9.94410706]
[1763479867588,9.94410706,141.44,141.37,9.94410706]
[1763479868103,0.68,141.44,141.38,9.94410706]
[1763479868794,14.42410706,141.47,141.4,9.94410706]
[1763479868962,10.62410706,141.46,141.36,22.80096]
[1763479869160,10.62410706,141.46,141.39,9.94410706]
[1763479869393,0.68,141.45,141.39,9.94410706]
[1763479869594,0.68,141.49,141.41,9.94410706]
[1763479869761,0.68,141.54,141.48,9.94410706]
[1763479869969,0.68,141.55,141.48,4.48]
[1763479870161,0.68,141.55,141.44,0.70701357]
[1763479870162,10.62410706,141.55,141.44,0.70701357]
[1763479870387,4.48,141.58,141.49,9.94410706]
[1763479870586,15.10410706,141.58,141.51,9.94410706]
[1763479870761,15.10410706,141.58,141.46,0.70691361]
[1763479870762,5.16,141.58,141.54,9.94410706]
[1763479870966,0.68,141.57,141.51,9.94410706]
[1763479871269,9.94410706,141.55,141.41,0.90716356]
[1763479871472,28.06506706,141.54,141.47,9.94410706]
[1763479871676,9.94410706,141.52,141.44,4.48]
[1763479871897,18.12096,141.54,141.48,9.94410706]
[1763479871898,0.68,141.54,141.48,9.94410706]
[1763479872097,0.65,141.53,141.49,9.94410706]
[1763479872299,0.65,141.55,141.49,9.94410706]
[1763479872471,0.65,141.54,141.47,9.94410706]
[1763479872666,0.65,141.54,141.46,9.94410706]
[1763479872891,9.94410706,141.52,141.44,4.48]
[1763479873080,9.94410706,141.5,141.41,4.48]
[1763479873280,9.94410706,141.49,141.42,9.94410706]
[1763479873483,18.77096,141.52,141.4,4.48]
[1763479873693,0.65,141.52,141.4,4.48]
[1763479873867,9.94410706,141.5,141.43,9.94410706]
[1763479874068,0.65,141.5,141.44,9.94410706]
[1763479874388,22.60096,141.55,141.47,9.94410706]
[1763479874594,22.60096,141.55,141.42,0.2]
[1763479874595,10.59410706,141.55,141.49,9.94410706]
[1763479874809,0.65,141.54,141.48,9.94410706]
[1763479874983,0.65,141.54,141.51,9.94410706]
[1763479875185,0.65,141.54,141.43,0.70706356]
[1763479875382,18.12096,141.51,141.42,9.94410706]
[1763479875590,9.94410706,141.5,141.43,9.94410706]
[1763479875799,9.94410706,141.5,141.36,24.75904263]
[1763479875800,9.94410706,141.47,141.34,15.5]
[1763479875998,9.94410706,141.47,141.4,9.94410706]
[1763479876205,0.65,141.46,141.4,9.94410706]
[1763479876417,10.59410706,141.46,141.39,9.94410706]
[1763479876594,0.65,141.46,141.4,9.94410706]
[1763479876781,14.42410706,141.48,141.34,40.06267992]
[1763479876782,0.65,141.49,141.45,9.94410706]
[1763479877285,9.94410706,141.59,141.48,9.94410706]
[1763479877486,9.94410706,141.53,141.4,18.12096]
[1763479877705,9.94410706,141.54,141.47,9.94410706]
[1763479877889,4.48,141.56,141.48,9.94410706]
[1763479878089,10.59410706,141.55,141.46,9.94410706]
[1763479878321,18.12096,141.52,141.44,9.94410706]
[1763479878498,18.12096,141.52,141.39,9.78882769]
[1763479878499,9.94410706,141.47,141.39,9.94410706]
[1763479879015,0.65,141.46,141.36,18.12096]
[1763479879212,0.65,141.46,141.39,8.88957365]
[1763479879716,0.65,141.46,141.38,4.48]
[1763479880009,0.65,141.46,141.35,4.48]
[1763479880224,0.65,141.46,141.39,8.88957365]
[1763479880387,0.65,141.48,141.42,8.88957365]
[1763479880717,8.88957365,141.44,141.31,4.48]
[1763479881042,0.65,141.47,141.4,8.88957365]
[1763479881182,0.65,141.47,141.41,8.88957365]
[1763479881388,9.53957365,141.47,141.35,18.12096]
[1763479881612,9.53957365,141.47,141.32,0.2]
[1763479881613,8.88957365,141.45,141.32,0.2]
[1763479881918,8.88957365,141.41,141.27,9.98882769]
[1763479882122,18.12096,141.38,141.3,8.88957365]
[1763479882330,5.18,141.4,141.31,8.88957365]
[1763479882500,0.7,141.39,141.34,8.88957365]
[1763479882818,0.7,141.39,141.29,8.88957365]
[1763479883020,9.58957365,141.39,141.31,8.88957365]
[1763479883233,0.7,141.39,141.36,8.88957365]
[1763479883517,35.73833201,141.58,141.28,0.70781426]
[1763479883518,0.7,141.43,141.38,8.88957365]
[1763479883823,2.0,141.53,141.42,8.88957365]
[1763479883824,8.88957365,141.49,141.42,8.88957365]
[1763479884025,8.88957365,141.49,141.36,27.90978769]
[1763479884026,0.7,141.52,141.43,8.88957365]
[1763479884322,0.7,141.52,141.49,8.88957365]
[1763479884534,5.18,141.58,141.45,9.78882769]
[1763479884703,0.7,141.62,141.55,8.88957365]
[1763479884895,4.69708145,141.66,141.58,8.88957365]
[1763479884896,0.7,141.66,141.58,8.88957365]
[1763479885094,2.0,141.71,141.51,52.64302209]
[1763479885095,8.88957365,141.64,141.57,8.88957365]
[1763479885289,9.58957365,141.65,141.54,4.48]
[1763479885598,9.58957365,141.65,141.58,8.88957365]
[1763479885599,0.7,141.65,141.58,8.88957365]
[1763479885928,0.7,141.64,141.58,8.88957365]
[1763479886419,8.88957365,141.63,141.37,54.93992914]
[1763479886607,8.88957365,141.59,141.5,8.88957365]
[1763479886815,8.88957365,141.59,141.51,8.88957365]
[1763479887020,27.90978769,141.61,141.45,24.74372569]
[1763479887021,8.88957365,141.63,141.49,0.2]
[1763479887201,0.7,141.58,141.46,4.48]
[1763479887399,18.12096,141.56,141.48,8.88957365]
[1763479887603,18.12096,141.56,141.47,8.88957365]
[1763479887907,0.7,141.55,141.47,8.88957365]
[1763479888099,8.88957365,141.54,141.46,8.88957365]
[1763479888447,0.7,141.55,141.48,8.88957365]
[1763479888594,8.88957365,141.56,141.46,8.88957365]
[1763479888595,9.58957365,141.54,141.46,8.88957365]
[1763479889117,32.19053365,141.53,141.37,0.2]
[1763479889313,8.88957365,141.51,141.43,8.88957365]
[1763479889618,14.06957365,141.52,141.45,8.88957365]
[1763479889827,18.12096,141.49,141.38,11.55313622]
[1763479890003,8.88957365,141.5,141.43,8.88957365]
[1763479890206,0.7,141.5,141.44,8.88957365]
[1763479890412,18.12096,141.51,141.33,7.27524836]
[1763479890413,8.88957365,141.47,141.33,7.27524836]
[1763479890609,27.71053365,141.49,141.41,8.88957365]
[1763479890816,0.7,141.52,141.47,8.88957365]
[1763479891020,27.01053365,141.54,141.4,4.48]
[1763479891021,0.7,141.51,141.41,9.78882769]
[1763479891333,4.48,141.55,141.43,9.78882769]
[1763479891505,0.7,141.53,141.43,4.48]
[1763479892201,0.7,141.53,141.37,0.90736365]
[1763479892202,9.58957365,141.53,141.37,0.90736365]
[1763479892401,0.7,141.53,141.39,9.78882769]
[1763479892624,0.7,141.57,141.43,9.78882769]
[1763479892828,0.7,141.57,141.52,8.88957365]
[1763479893033,0.7,141.57,141.47,7.06863646]
[1763479893218,8.88957365,141.56,141.49,8.88957365]
[1763479893532,18.82096,141.57,141.48,8.88957365]
[1763479893705,9.58957365,141.56,141.48,8.88957365]
[1763479893906,0.7,141.56,141.49,8.88957365]
[1763479894099,0.7,141.55,141.49,8.88957365]
[1763479894298,0.7,141.58,141.53,8.88957365]
[1763479894533,14.77000321,141.74,141.57,8.88957365]
[1763479894534,0.7,141.64,141.57,8.88957365]
[1763479894721,5.4075774,141.73,141.56,9.78882769]
[1763479895029,27.01053365,141.69,141.57,24.72275198]
[1763479895334,8.88957365,141.68,141.61,8.88957365]
[1763479895502,9.58957365,141.68,141.61,8.88957365]
[1763479895705,0.7,141.67,141.63,8.88957365]
[1763479896110,0.7,141.67,141.62,8.88957365]
[1763479896313,0.7,141.67,141.58,4.46]
[1763479896627,0.7,141.67,141.63,8.88957365]
[1763479896805,0.7,141.67,141.61,8.88957365]
[1763479897129,0.7,141.67,141.64,8.88957365]
[1763479897808,0.7,141.67,141.61,4.46]
[1763479897809,0.7,141.67,141.62,8.88957365]
[1763479899038,8.88957365,141.66,141.56,4.46]
[1763479899335,8.88957365,141.66,141.59,8.88957365]
[1763479899511,0.7,141.67,141.6,8.88957365]
[1763479899512,0.7,141.65,141.6,8.88957365]
[1763479900011,0.7,141.65,141.61,8.88957365]
[1763479900215,0.7,141.65,141.6,8.88957365]
[1763479900417,5.16,141.68,141.62,8.88957365]
[1763479900730,0.7,141.67,141.62,8.88957365]
[1763479900946,0.7,141.67,141.63,8.88957365]
[1763479901132,0.7,141.67,141.65,8.88957365]
[1763479901308,0.7,141.71,141.66,8.88957365]
[1763479901513,0.7,141.71,141.6,7.06198509]
[1763479901728,0.7,141.71,141.51,50.0]
[1763479901729,27.01053365,141.67,141.54,0.2]
[1763479902035,0.7,141.71,141.54,8.88957365]
[1763479902036,8.88957365,141.61,141.54,8.88957365]
[1763479902233,8.88957365,141.62,141.55,8.88957365]
[1763479902440,9.58957365,141.62,141.55,8.88957365]
[1763479902742,0.7,141.65,141.55,4.46]
[1763479902909,0.7,141.65,141.56,24.72449844]
[1763479903115,0.7,141.65,141.6,8.88957365]
[1763479903309,0.7,141.65,141.59,8.88957365]
[1763479903508,0.7,141.65,141.61,8.88957365]
[1763479903813,0.7,141.68,141.64,8.88957365]
[1763479904020,0.7,141.68,141.65,8.88957365]
[1763479904217,0.7,141.68,141.6,4.46]
[1763479904218,4.46,141.72,141.67,8.88957365]
[1763479904418,0.7,141.71,141.6,4.66]
[1763479904623,8.88957365,141.7,141.63,8.88957365]
[1763479904834,0.7,141.69,141.6,4.46]
[1763479905027,18.82096,141.69,141.6,8.88957365]
[1763479905226,8.88957365,141.67,141.6,8.88957365]
[1763479905617,0.7,141.66,141.61,8.88957365]
[1763479906018,18.82096,141.66,141.61,8.88957365]
[1763479906241,18.82096,141.66,141.6,8.88957365]
[1763479906419,18.82096,141.66,141.61,8.88957365]
[1763479906616,0.7,141.65,141.62,8.88957365]
[1763479906929,2.1,141.77,141.61,15.95120115]
[1763479906930,8.88957365,141.69,141.61,15.95120115]
[1763479907124,8.88957365,141.69,141.62,8.88957365]
[1763479907332,0.7,141.68,141.62,8.88957365]
[1763479907644,9.58957365,141.68,141.58,7.06314451]
[1763479907819,9.58957365,141.68,141.62,8.88957365]
[1763479908022,0.7,141.68,141.62,8.88957365]
[1763479908338,0.7,141.68,141.58,29.18100578]
[1763479908528,0.7,141.68,141.63,8.88957365]
[1763479908951,0.7,141.68,141.6,4.46]
[1763479909154,9.58957365,141.68,141.62,8.88957365]
[1763479909326,0.7,141.68,141.48,0.2]
[1763479909525,8.88957365,141.62,141.56,8.88957365]
[1763479909723,18.12096,141.64,141.58,8.88957365]
[1763479909934,0.7,141.63,141.59,8.88957365]
[1763479910137,9.58957365,141.63,141.52,9.98882769]
[1763479910335,8.88957365,141.61,141.49,24.9367305]
[1763479910542,0.7,141.6,141.55,8.88957365]
[1763479910944,0.7,141.6,141.53,4.46]
[1763479911143,0.7,141.6,141.54,8.88957365]
[1763479911463,0.7,141.6,141.53,4.46]
[1763479911464,0.7,141.62,141.57,8.88957365]
[1763479911661,4.46,141.66,141.59,8.88957365]
[1763479911825,4.46,141.66,141.53,29.18972604]
[1763479911826,8.88957365,141.64,141.54,9.78882769]
[1763479912026,8.88957365,141.64,141.58,8.88957365]
[1763479912227,0.7,141.63,141.58,8.88957365]
[1763479912440,18.12096,141.67,141.61,8.88957365]
[1763479912441,0.7,141.67,141.61,8.88957365]
[1763479912643,0.7,141.66,141.61,8.88957365]
[1763479912863,0.7,141.66,141.63,5.77764242]
[1763479913170,0.7,141.66,141.62,5.77764242]
[1763479913337,0.7,141.66,141.61,5.77764242]
[1763479913538,0.7,141.66,141.62,5.77764242]
[1763479913864,5.77764242,141.68,141.63,5.77764242]
[1763479913865,0.7,141.68,141.63,5.77764242]
[1763479914163,0.7,141.68,141.58,9.98882769]
[1763479914164,0.7,141.67,141.58,4.46]
[1763479914334,0.7,141.67,141.59,5.77764242]
[1763479914953,6.47764242,141.67,141.6,5.77764242]
[1763479915145,5.77764242,141.66,141.6,5.77764242]
[1763479915359,0.7,141.68,141.63,5.77764242]
[1763479915539,0.7,141.68,141.6,7.06209047]
[1763479915540,0.7,141.68,141.64,5.77764242]
[1763479915738,0.7,141.68,141.63,5.77764242]
[1763479916444,0.7,141.68,141.6,7.06203644]
[1763479916764,0.7,141.68,141.61,5.77764242]
[1763479916765,5.77764242,141.67,141.61,5.77764242]
[1763479917245,0.7,141.66,141.61,5.77764242]
[1763479917443,0.7,141.66,141.6,5.77764242]
[1763479917444,6.47764242,141.66,141.6,5.77764242]
[1763479917647,5.77764242,141.65,141.59,5.77764242]
[1763479917853,5.77764242,141.65,141.55,9.98882769]
[1763479917854,5.77764242,141.63,141.53,9.78882769]
[1763479918041,0.7,141.65,141.6,5.77764242]
[1763479918364,5.77764242,141.63,141.57,5.77764242]
[1763479918571,0.7,141.65,141.52,27.45372449]
[1763479918572,5.77764242,141.58,141.52,9.78882769]
[1763479918799,23.89860242,141.53,141.4,5.97764242]
[1763479919070,5.77764242,141.5,141.39,7.27217762]
[1763479919256,6.47764242,141.49,141.43,5.77764242]
[1763479919459,5.77764242,141.48,141.41,5.77764242]
[1763479919662,5.77764242,141.45,141.36,15.28]
[1763479919865,5.77764242,141.5,141.37,10.23764242]
[1763479919866,5.77764242,141.43,141.37,10.23764242]
[1763479920072,0.7,141.47,141.41,5.77764242]
[1763479920271,5.77764242,141.48,141.42,5.77764242]
[1763479920457,5.77764242,141.48,141.36,24.75926741]
[1763479920458,5.77764242,141.45,141.36,24.75926741]
[1763479920782,20.12096,141.64,141.44,8.88410908]
[1763479920940,9.58410908,141.55,141.45,4.46]
[1763479921145,9.58410908,141.55,141.49,15.95171031]
[1763479921367,4.46,141.63,141.53,8.88410908]
[1763479921576,8.88410908,141.6,141.54,8.88410908]
[1763479921765,0.7,141.65,141.58,8.88410908]
[1763479921950,9.58410908,141.65,141.55,4.66]
[1763479922152,0.7,141.66,141.57,18.12096]
[1763479922382,8.88410908,141.65,141.59,8.88410908]
[1763479922665,8.88410908,141.65,141.56,0.2]
[1763479922666,9.58410908,141.66,141.58,4.46]
[1763479922972,4.46,141.73,141.58,4.46]
[1763479922973,0.7,141.67,141.59,9.78882769]
[1763479923189,0.7,141.67,141.63,8.88410908]
[1763479923396,8.88410908,141.64,141.52,0.2]
[1763479923678,9.58410908,141.65,141.59,8.88410908]
[1763479923884,0.7,141.68,141.62,8.88410908]
[1763479924086,0.7,141.72,141.66,8.88410908]
[1763479924256,0.7,141.72,141.63,4.66]
[1763479924449,0.7,141.72,141.68,8.88410908]
[1763479925077,4.46,141.79,141.68,8.88410908]
[1763479925253,0.7,141.76,141.69,8.88410908]
[1763479925574,9.58410908,141.79,141.74,8.88410908]
[1763479925882,8.88410908,141.75,141.64,27.90978769]
[1763479926186,8.88410908,141.7,141.61,9.78882769]
[1763479926476,0.1,141.77,141.7,9.78882769]
[1763479926646,5.86629392,141.99,141.8,18.12096]
[1763479926974,0.7,141.98,141.85,9.78882769]
[1763479927174,8.88410908,141.96,141.9,8.88410908]
[1763479927376,0.7,141.95,141.82,7.15099901]
[1763479927541,0.7,141.95,141.89,8.88410908]
[1763479927742,0.7,141.95,141.83,4.46]
[1763479927947,5.16,141.95,141.79,7.05267526]
[1763479928286,8.88410908,141.83,141.77,8.88410908]
[1763479928587,18.12096,141.89,141.82,8.88410908]
[1763479928795,4.46,141.93,141.8,0.1]
[1763479928963,0.7,141.93,141.88,8.88410908]
[1763479929286,0.7,141.95,141.84,9.78882769]
[1763479929459,0.7,141.95,141.83,22.58096]
[1763479929460,9.58410908,141.99,141.93,8.88410908]
[1763479929645,1.7488874,142.0,141.96,8.88410908]
[1763479929847,0.7,141.99,141.9,9.78882769]
[1763479930077,0.7,141.99,141.94,8.88410908]
[1763479930287,0.7,141.99,141.9,9.78882769]
[1763479930288,9.58410908,141.99,141.9,9.78882769]
[1763479930491,9.58410908,141.99,141.93,8.88410908]
[1763479930780,0.7,141.99,141.96,8.88410908]
[1763479931015,0.7,141.99,141.95,8.88410908]
[1763479931160,0.7,141.99,141.94,8.88410908]
[1763479931366,1.7488874,142.0,141.98,8.88410908]
[1763479931680,1.7488874,142.0,141.99,18.67293677]
[1763479931871,1.93593088,142.12,142.06,8.88410908]
[1763479932060,1.93593088,142.12,142.09,8.88410908]
[1763479932268,1.93593088,142.12,142.04,4.46]
[1763479932269,2.58593088,142.12,142.04,9.78882769]
[1763479932458,1.93593088,142.12,142.08,8.88410908]
[1763479932660,1.93593088,142.12,142.1,8.88410908]
[1763479932856,11.47003996,142.12,142.04,4.46]
[1763479933057,2.58593088,142.12,142.07,8.88410908]
[1763479933276,2.58593088,142.12,142.05,7.03977036]
[1763479933479,8.88410908,142.07,141.95,0.1]
[1763479933658,0.65,142.06,141.95,9.78882769]
[1763479934183,0.65,142.06,141.95,9.88882769]
[1763479934483,8.88410908,142.04,141.94,4.46]
[1763479934685,0.65,142.05,141.98,8.88410908]
[1763479934901,8.88410908,142.07,141.98,18.12096]
[1763479935080,9.53410908,142.07,142.01,8.88410908]
[1763479935274,8.88410908,142.06,142.0,8.88410908]
[1763479935471,0.65,142.06,141.97,7.04374163]
[1763479935680,20.05689088,142.12,142.05,8.88410908]
[1763479935681,2.58593088,142.12,142.05,8.88410908]
[1763479935880,9.53410908,142.11,142.01,4.46]
[1763479936089,1.93593088,142.12,142.06,8.88410908]
[1763479936270,1.93593088,142.12,142.11,8.88410908]
[1763479936462,1.93593088,142.12,142.06,4.46]
[1763479936665,0.65,142.11,141.99,4.46]
[1763479936885,0.65,142.11,142.06,8.88410908]
[1763479937073,1.93593088,142.12,142.07,8.88410908]
[1763479937275,1.93593088,142.12,142.11,8.88410908]
[1763479937570,1.93593088,142.12,142.05,4.46]
[1763479937571,2.58593088,142.12,142.05,4.46]
[1763479937872,1.93593088,142.12,142.11,8.88410908]